[Event "*** SCC Grand Prix: Titled Tuesday Blitz"]
[Site "Chess.com"]
[Date "2020.07.07"]
[Round "1"]
[White "GoingKronos"]
[Black "Kate1606"]
[Result "1-0"]
[WhiteElo "2469"]
[BlackElo "1419"]
[TimeControl "180+1"]
[EndTime "10:06:05 PDT"]
[Termination "GoingKronos won by resignation"]

1. d4 {[%clk 0:02:58.3]} 1... Nf6 {[%clk 0:02:55.3]} 2. Nf3 {[%clk 0:02:57.3]}
2... e6 {[%clk 0:02:54.3]} 3. c4 {[%clk 0:02:56.6]} 3... Bb4+ {[%clk 0:02:53.2]}
4. Bd2 {[%clk 0:02:55.5]} 4... Qe7 {[%clk 0:02:52.1]} 5. g3 {[%clk 0:02:54.6]}
5... Nc6 {[%clk 0:02:50.7]} 6. Nc3 {[%clk 0:02:52.1]} 6... d6 {[%clk 0:02:42.6]}
7. Bg2 {[%clk 0:02:49.8]} 7... Bxc3 {[%clk 0:02:39.9]} 8. Bxc3 {[%clk
0:02:49.3]} 8... Ne4 {[%clk 0:02:39.1]} 9. Rc1 {[%clk 0:02:48.9]} 9... Nxc3
{[%clk 0:02:38.7]} 10. Rxc3 {[%clk 0:02:48.3]} 10... O-O {[%clk 0:02:38.2]} 11.
d5 {[%clk 0:02:47.3]} 11... Nb8 {[%clk 0:02:11.7]} 12. dxe6 {[%clk 0:02:45.5]}
12... fxe6 {[%clk 0:02:00]} 13. Nd4 {[%clk 0:02:42.4]} 13... e5 {[%clk
0:01:52.8]} 14. Nc2 {[%clk 0:02:42]} 14... Nc6 {[%clk 0:01:49]} 15. Ne3 {[%clk
0:02:35.8]} 15... Be6 {[%clk 0:01:41.2]} 16. O-O {[%clk 0:02:32]} 16... Rab8
{[%clk 0:01:35.5]} 17. Nd5 {[%clk 0:02:30.9]} 17... Bxd5 {[%clk 0:01:07.9]} 18.
cxd5 {[%clk 0:02:30.8]} 18... Nd4 {[%clk 0:01:03.1]} 19. e3 {[%clk 0:02:26.2]}
19... Nf5 {[%clk 0:00:57.5]} 20. Qc2 {[%clk 0:02:20.1]} 20... Rbc8 {[%clk
0:00:54]} 21. Rc1 {[%clk 0:02:19.2]} 21... Rf7 {[%clk 0:00:31.4]} 22. Qa4 {[%clk
0:01:50.2]} 22... a6 {[%clk 0:00:15]} 23. Bh3 {[%clk 0:01:25.2]} 23... g6 {[%clk
0:00:14.4]} 24. e4 {[%clk 0:01:19.2]} 24... Nd4 {[%clk 0:00:10.5]} 25. Bxc8
{[%clk 0:01:19]} 25... Ne2+ {[%clk 0:00:10.2]} 26. Kg2 {[%clk 0:01:18.2]} 26...
Qf8 {[%clk 0:00:06.8]} 27. Be6 {[%clk 0:01:17.6]} 27... Nxc1 {[%clk 0:00:04.6]}
28. Rxc1 {[%clk 0:01:16.4]} 28... Kg7 {[%clk 0:00:03.5]} 29. Bxf7 {[%clk
0:01:16.6]} 29... Qxf7 {[%clk 0:00:04.4]} 30. Qd1 {[%clk 0:01:12]} 30... h5
{[%clk 0:00:03.9]} 31. Qf3 {[%clk 0:01:11.6]} 1-0

[Event "*** SCC Grand Prix: Titled Tuesday Blitz"]
[Site "Chess.com"]
[Date "2020.07.07"]
[Round "1"]
[White "Zhani-Z"]
[Black "Infernal_XaM"]
[Result "0-1"]
[WhiteElo "2452"]
[BlackElo "2936"]
[TimeControl "180+1"]
[EndTime "10:06:07 PDT"]
[Termination "Infernal_XaM won by resignation"]

1. e4 {[%clk 0:03:00]} 1... e5 {[%clk 0:02:59.6]} 2. Nf3 {[%clk 0:02:59.5]} 2...
Nc6 {[%clk 0:03:00.3]} 3. Nc3 {[%clk 0:02:57]} 3... Nf6 {[%clk 0:02:59.8]} 4.
Bb5 {[%clk 0:02:57.5]} 4... Bb4 {[%clk 0:02:57]} 5. O-O {[%clk 0:02:55.1]} 5...
O-O {[%clk 0:02:56.1]} 6. Bxc6 {[%clk 0:02:51.6]} 6... dxc6 {[%clk 0:02:49.6]}
7. d3 {[%clk 0:02:51.2]} 7... Nd7 {[%clk 0:02:47.5]} 8. Ne2 {[%clk 0:02:36]}
8... Re8 {[%clk 0:02:46.5]} 9. Ng3 {[%clk 0:02:35.3]} 9... Bf8 {[%clk 0:02:46]}
10. Re1 {[%clk 0:02:20]} 10... c5 {[%clk 0:02:44.9]} 11. h3 {[%clk 0:02:15.5]}
11... Nb8 {[%clk 0:02:43.7]} 12. c3 {[%clk 0:01:56.4]} 12... Nc6 {[%clk
0:02:43.2]} 13. Be3 {[%clk 0:01:56.2]} 13... f6 {[%clk 0:02:36]} 14. Qb3+ {[%clk
0:01:45.5]} 14... Kh8 {[%clk 0:02:35]} 15. Rad1 {[%clk 0:01:46]} 15... b6 {[%clk
0:02:28.7]} 16. d4 {[%clk 0:01:42.3]} 16... cxd4 {[%clk 0:02:28.8]} 17. cxd4
{[%clk 0:01:42.4]} 17... exd4 {[%clk 0:02:29.3]} 18. Nxd4 {[%clk 0:01:42]} 18...
Nxd4 {[%clk 0:02:29.6]} 19. Rxd4 {[%clk 0:01:37.9]} 19... Qe7 {[%clk 0:02:26.4]}
20. Qd5 {[%clk 0:01:18.1]} 20... Be6 {[%clk 0:02:25.1]} 21. Qc6 {[%clk
0:01:17.6]} 21... Rad8 {[%clk 0:02:18.1]} 22. Red1 {[%clk 0:01:07.2]} 22... Rxd4
{[%clk 0:02:14.8]} 23. Rxd4 {[%clk 0:01:08.1]} 23... Qf7 {[%clk 0:02:03.3]} 24.
b3 {[%clk 0:01:06.9]} 24... Bd6 {[%clk 0:01:55.9]} 25. f4 {[%clk 0:00:56.2]}
25... Bd7 {[%clk 0:01:45.4]} 26. Qc4 {[%clk 0:00:50.1]} 26... Qxc4 {[%clk
0:01:43.8]} 27. Rxc4 {[%clk 0:00:43.2]} 27... c5 {[%clk 0:01:35.9]} 28. a4
{[%clk 0:00:36.3]} 28... Kg8 {[%clk 0:01:34.3]} 29. Kf2 {[%clk 0:00:35.3]} 29...
Be6 {[%clk 0:01:29.8]} 30. Rc3 {[%clk 0:00:34.8]} 30... Rd8 {[%clk 0:01:30.2]}
31. Rd3 {[%clk 0:00:34.2]} 31... Be7 {[%clk 0:01:29.4]} 32. Rxd8+ {[%clk
0:00:33]} 32... Bxd8 {[%clk 0:01:29.1]} 33. a5 {[%clk 0:00:24.9]} 33... Bxb3
{[%clk 0:01:28.4]} 34. axb6 {[%clk 0:00:25.4]} 34... axb6 {[%clk 0:01:28.4]} 35.
Ne2 {[%clk 0:00:21.9]} 35... Kf7 {[%clk 0:01:28.2]} 36. Nc3 {[%clk 0:00:22]}
36... Bc4 {[%clk 0:01:27.2]} 37. Na4 {[%clk 0:00:21.7]} 37... Ke6 {[%clk
0:01:24.6]} 38. Ke1 {[%clk 0:00:20]} 38... Kd7 {[%clk 0:01:24]} 39. g3 {[%clk
0:00:20.1]} 39... Kc6 {[%clk 0:01:24.1]} 0-1

[Event "*** SCC Grand Prix: Titled Tuesday Blitz"]
[Site "Chess.com"]
[Date "2020.07.07"]
[Round "1"]
[White "deep306"]
[Black "ambaixador"]
[Result "1-0"]
[WhiteElo "2669"]
[BlackElo "2344"]
[TimeControl "180+1"]
[EndTime "10:06:08 PDT"]
[Termination "deep306 won by resignation"]

1. e4 {[%clk 0:03:00.6]} 1... c5 {[%clk 0:02:59.7]} 2. Nf3 {[%clk 0:03:00.3]}
2... d6 {[%clk 0:02:58.7]} 3. Bb5+ {[%clk 0:02:59.5]} 3... Bd7 {[%clk
0:02:58.3]} 4. Bxd7+ {[%clk 0:02:59.2]} 4... Qxd7 {[%clk 0:02:59.2]} 5. c4
{[%clk 0:02:59.2]} 5... Nc6 {[%clk 0:02:58.7]} 6. Nc3 {[%clk 0:02:58.6]} 6... g6
{[%clk 0:02:58.5]} 7. d4 {[%clk 0:02:58.5]} 7... cxd4 {[%clk 0:02:57.9]} 8. Nxd4
{[%clk 0:02:58.1]} 8... Bg7 {[%clk 0:02:57.5]} 9. Be3 {[%clk 0:02:58.1]} 9...
Nf6 {[%clk 0:02:56.6]} 10. Rc1 {[%clk 0:02:56.8]} 10... O-O {[%clk 0:02:54.6]}
11. f3 {[%clk 0:02:51.3]} 11... Rfc8 {[%clk 0:02:50.7]} 12. b3 {[%clk
0:02:48.4]} 12... Qe8 {[%clk 0:02:28.3]} 13. O-O {[%clk 0:02:46.7]} 13... Ne5
{[%clk 0:02:25.6]} 14. Qd2 {[%clk 0:02:40.7]} 14... Nfd7 {[%clk 0:02:24]} 15. h3
{[%clk 0:02:32.4]} 15... Nc5 {[%clk 0:02:23.8]} 16. Rcd1 {[%clk 0:02:26.7]}
16... Rab8 {[%clk 0:02:19.5]} 17. f4 {[%clk 0:02:25.1]} 17... Nc6 {[%clk
0:02:14.6]} 18. f5 {[%clk 0:02:20.4]} 18... Ne5 {[%clk 0:02:13.4]} 19. Nd5
{[%clk 0:02:18.8]} 19... Ncd7 {[%clk 0:02:11.9]} 20. Bg5 {[%clk 0:02:14.1]}
20... f6 {[%clk 0:01:28.1]} 21. Bf4 {[%clk 0:02:13.3]} 21... Nf8 {[%clk
0:01:27.6]} 22. Qf2 {[%clk 0:02:06.6]} 22... a6 {[%clk 0:01:27.7]} 23. a4 {[%clk
0:02:02.8]} 23... b5 {[%clk 0:01:26.1]} 24. axb5 {[%clk 0:01:59.2]} 24... axb5
{[%clk 0:01:27]} 25. cxb5 {[%clk 0:01:59.4]} 25... gxf5 {[%clk 0:01:23.5]} 26.
Nxf5 {[%clk 0:01:56.1]} 26... Nfg6 {[%clk 0:01:17]} 27. b6 {[%clk 0:01:53.2]}
27... Rc6 {[%clk 0:01:07.4]} 28. h4 {[%clk 0:01:49.7]} 28... e6 {[%clk
0:01:07.2]} 29. Nxg7 {[%clk 0:01:48.2]} 29... Kxg7 {[%clk 0:01:08.1]} 30. Nxf6
{[%clk 0:01:44.6]} 30... Kxf6 {[%clk 0:00:58.9]} 31. Bxe5+ {[%clk 0:01:44.4]}
31... Ke7 {[%clk 0:00:53.9]} 32. Qf6+ {[%clk 0:01:40.4]} 32... Kd7 {[%clk
0:00:54.2]} 33. Qg7+ {[%clk 0:01:35.4]} 33... Kc8 {[%clk 0:00:52.1]} 34. Rxd6
{[%clk 0:01:12.6]} 34... Rbxb6 {[%clk 0:00:46.7]} 35. Rxc6+ {[%clk 0:01:09.5]}
35... Rxc6 {[%clk 0:00:47.6]} 36. Ra1 {[%clk 0:01:04.7]} 1-0

[Event "*** SCC Grand Prix: Titled Tuesday Blitz"]
[Site "Chess.com"]
[Date "2020.07.07"]
[Round "1"]
[White "fighter2jz"]
[Black "Usurpov"]
[Result "1-0"]
[WhiteElo "2786"]
[BlackElo "2411"]
[TimeControl "180+1"]
[EndTime "10:06:09 PDT"]
[Termination "fighter2jz won by resignation"]

1. e4 {[%clk 0:02:56]} 1... c5 {[%clk 0:02:57.8]} 2. Nf3 {[%clk 0:02:55.7]} 2...
e6 {[%clk 0:02:47.5]} 3. d4 {[%clk 0:02:53.9]} 3... cxd4 {[%clk 0:02:48.4]} 4.
Nxd4 {[%clk 0:02:54.6]} 4... Nf6 {[%clk 0:02:48.8]} 5. Nc3 {[%clk 0:02:53.5]}
5... Nc6 {[%clk 0:02:49.1]} 6. Nxc6 {[%clk 0:02:49.7]} 6... bxc6 {[%clk
0:02:50]} 7. e5 {[%clk 0:02:48.9]} 7... Nd5 {[%clk 0:02:50.2]} 8. Ne4 {[%clk
0:02:48.3]} 8... Qc7 {[%clk 0:02:50.5]} 9. f4 {[%clk 0:02:47.9]} 9... Qb6 {[%clk
0:02:46.6]} 10. c4 {[%clk 0:02:46.5]} 10... Bb4+ {[%clk 0:02:43.3]} 11. Ke2
{[%clk 0:02:45.1]} 11... f5 {[%clk 0:02:23.7]} 12. exf6 {[%clk 0:02:41.3]} 12...
Nxf6 {[%clk 0:02:07.3]} 13. Nd6+ {[%clk 0:02:22.7]} 13... Bxd6 {[%clk
0:02:05.5]} 14. Qxd6 {[%clk 0:02:23.6]} 14... c5 {[%clk 0:02:03.3]} 15. Qxb6
{[%clk 0:02:19.4]} 15... axb6 {[%clk 0:02:04.2]} 16. b3 {[%clk 0:02:09.6]} 16...
Bb7 {[%clk 0:01:58]} 17. Rg1 {[%clk 0:02:09.2]} 17... d5 {[%clk 0:01:54.9]} 18.
Bb2 {[%clk 0:01:53]} 18... Kf7 {[%clk 0:01:43.2]} 19. g4 {[%clk 0:01:44.2]}
19... dxc4 {[%clk 0:01:34.6]} 20. bxc4 {[%clk 0:01:43.1]} 20... Rhd8 {[%clk
0:01:32.7]} 21. Ke3 {[%clk 0:01:36.6]} 21... Ra4 {[%clk 0:01:03]} 22. Bd3 {[%clk
0:01:25.1]} 22... Ba6 {[%clk 0:00:40.5]} 23. g5 {[%clk 0:01:20.6]} 23... Nh5
{[%clk 0:00:31.5]} 24. g6+ {[%clk 0:01:19.1]} 24... Kg8 {[%clk 0:00:20.1]} 25.
gxh7+ {[%clk 0:01:18.3]} 25... Kh8 {[%clk 0:00:20.4]} 26. Rg5 {[%clk 0:01:14.3]}
26... Nf6 {[%clk 0:00:17.5]} 27. Rag1 {[%clk 0:01:12]} 27... Rxd3+ {[%clk
0:00:10.4]} 28. Kxd3 {[%clk 0:01:11.6]} 28... Bxc4+ {[%clk 0:00:10.7]} 29. Kc2
{[%clk 0:01:07.5]} 29... Ra7 {[%clk 0:00:10.1]} 30. Rxg7 {[%clk 0:01:05.4]} 1-0

[Event "*** SCC Grand Prix: Titled Tuesday Blitz"]
[Site "Chess.com"]
[Date "2020.07.07"]
[Round "1"]
[White "CyberdelChess"]
[Black "olksuna"]
[Result "0-1"]
[WhiteElo "2261"]
[BlackElo "2597"]
[TimeControl "180+1"]
[EndTime "10:06:10 PDT"]
[Termination "olksuna won on time"]

1. e4 {[%clk 0:02:59.4]} 1... c5 {[%clk 0:02:57.5]} 2. Nf3 {[%clk 0:02:59.7]}
2... Nc6 {[%clk 0:02:56.8]} 3. d4 {[%clk 0:02:59.7]} 3... cxd4 {[%clk
0:02:57.6]} 4. Nxd4 {[%clk 0:03:00.2]} 4... g6 {[%clk 0:02:58.3]} 5. Be3 {[%clk
0:02:57.7]} 5... Nf6 {[%clk 0:02:55.1]} 6. Nc3 {[%clk 0:02:56.4]} 6... Bg7
{[%clk 0:02:55.2]} 7. Bc4 {[%clk 0:02:55.3]} 7... O-O {[%clk 0:02:53.8]} 8. Bb3
{[%clk 0:02:54.8]} 8... Qa5 {[%clk 0:02:52]} 9. O-O {[%clk 0:02:47]} 9... d6
{[%clk 0:02:51.6]} 10. h3 {[%clk 0:02:43.7]} 10... Bd7 {[%clk 0:02:51.3]} 11. f4
{[%clk 0:02:08.9]} 11... Rac8 {[%clk 0:02:28.8]} 12. Qf3 {[%clk 0:01:31]} 12...
Nxd4 {[%clk 0:02:05.8]} 13. Bxd4 {[%clk 0:01:31.9]} 13... Bc6 {[%clk 0:02:06.5]}
14. Rad1 {[%clk 0:01:13.8]} 14... Nd7 {[%clk 0:02:01.4]} 15. Qf2 {[%clk
0:00:57]} 15... Bxd4 {[%clk 0:01:42.2]} 16. Qxd4 {[%clk 0:00:54.3]} 16... Qc5
{[%clk 0:01:42.7]} 17. Qxc5 {[%clk 0:00:45.9]} 17... Nxc5 {[%clk 0:01:43.6]} 18.
e5 {[%clk 0:00:43.7]} 18... dxe5 {[%clk 0:01:32.8]} 19. fxe5 {[%clk 0:00:44.6]}
19... e6 {[%clk 0:01:32]} 20. Rd6 {[%clk 0:00:36.7]} 20... Rfd8 {[%clk
0:01:22.8]} 21. Rfd1 {[%clk 0:00:35.4]} 21... Rxd6 {[%clk 0:01:22.7]} 22. Rxd6
{[%clk 0:00:36.3]} 22... Nd7 {[%clk 0:01:13]} 23. Ba4 {[%clk 0:00:02.8]} 23...
Nxe5 {[%clk 0:01:06.6]} 24. Bxc6 {[%clk 0:00:02.4]} 24... Rxc6 {[%clk
0:01:07.5]} 25. Rd8+ {[%clk 0:00:01.3]} 25... Kg7 {[%clk 0:01:07.4]} 26. Rb8
{[%clk 0:00:01]} 26... Rc7 {[%clk 0:01:00.5]} 27. Kf2 {[%clk 0:00:01.3]} 27...
Nc6 {[%clk 0:00:58.8]} 0-1

[Event "*** SCC Grand Prix: Titled Tuesday Blitz"]
[Site "Chess.com"]
[Date "2020.07.07"]
[Round "1"]
[White "Lucas_Tomiello"]
[Black "Durarbayli"]
[Result "0-1"]
[WhiteElo "2420"]
[BlackElo "2808"]
[TimeControl "180+1"]
[EndTime "10:06:13 PDT"]
[Termination "Durarbayli won by resignation"]

1. e4 {[%clk 0:02:57.2]} 1... c5 {[%clk 0:02:59.8]} 2. Nf3 {[%clk 0:02:56.6]}
2... d6 {[%clk 0:02:59.4]} 3. d4 {[%clk 0:02:56.9]} 3... cxd4 {[%clk 0:03:00.3]}
4. Nxd4 {[%clk 0:02:57.8]} 4... Nf6 {[%clk 0:03:00.3]} 5. Nc3 {[%clk 0:02:58.1]}
5... Nc6 {[%clk 0:03:00.7]} 6. Bg5 {[%clk 0:02:57.3]} 6... Qb6 {[%clk
0:03:00.7]} 7. Nb3 {[%clk 0:02:46.2]} 7... e6 {[%clk 0:03:00]} 8. Bxf6 {[%clk
0:02:45]} 8... gxf6 {[%clk 0:02:59.8]} 9. Qh5 {[%clk 0:02:43.9]} 9... a6 {[%clk
0:02:36]} 10. Bd3 {[%clk 0:02:39.8]} 10... Bd7 {[%clk 0:02:30.7]} 11. O-O {[%clk
0:02:39]} 11... Ne5 {[%clk 0:02:29.5]} 12. Kh1 {[%clk 0:02:35.5]} 12... Rg8
{[%clk 0:02:11.3]} 13. h3 {[%clk 0:02:22.1]} 13... Rg6 {[%clk 0:01:44.6]} 14. f4
{[%clk 0:02:07.8]} 14... Ng4 {[%clk 0:01:05.3]} 15. f5 {[%clk 0:01:23.8]} 15...
Rg5 {[%clk 0:01:02.6]} 16. Qxh7 {[%clk 0:01:18.7]} 16... Nf2+ {[%clk 0:00:40.4]}
17. Kh2 {[%clk 0:01:16.8]} 17... d5 {[%clk 0:00:39.9]} 18. e5 {[%clk 0:01:10.4]}
18... Qe3 {[%clk 0:00:37.4]} 19. Qh4 {[%clk 0:00:46.2]} 19... Qxe5+ {[%clk
0:00:36.9]} 20. Kg1 {[%clk 0:00:43.1]} 20... Nxd3 {[%clk 0:00:32.9]} 21. cxd3
{[%clk 0:00:41.7]} 21... Bd6 {[%clk 0:00:33.4]} 0-1

[Event "*** SCC Grand Prix: Titled Tuesday Blitz"]
[Site "Chess.com"]
[Date "2020.07.07"]
[Round "1"]
[White "goofypenguin96"]
[Black "VladimirBelous"]
[Result "0-1"]
[WhiteElo "2391"]
[BlackElo "2719"]
[TimeControl "180+1"]
[EndTime "10:06:15 PDT"]
[Termination "VladimirBelous won by resignation"]

1. e4 {[%clk 0:02:58.3]} 1... c5 {[%clk 0:02:57.9]} 2. Nf3 {[%clk 0:02:58]} 2...
Nc6 {[%clk 0:02:57.9]} 3. c3 {[%clk 0:02:58.2]} 3... Nf6 {[%clk 0:02:57.5]} 4.
e5 {[%clk 0:02:57.3]} 4... Nd5 {[%clk 0:02:58]} 5. d4 {[%clk 0:02:57.5]} 5...
cxd4 {[%clk 0:02:58.4]} 6. cxd4 {[%clk 0:02:57]} 6... d6 {[%clk 0:02:58.4]} 7.
exd6 {[%clk 0:02:56.8]} 7... Bg4 {[%clk 0:02:53.4]} 8. Be2 {[%clk 0:02:52.2]}
8... e6 {[%clk 0:02:51.4]} 9. Nc3 {[%clk 0:02:47.8]} 9... Nxc3 {[%clk
0:02:40.8]} 10. bxc3 {[%clk 0:02:48.7]} 10... Bxd6 {[%clk 0:02:41.3]} 11. O-O
{[%clk 0:02:47.9]} 11... O-O {[%clk 0:02:40.8]} 12. h3 {[%clk 0:02:29.5]} 12...
Bh5 {[%clk 0:02:39.9]} 13. Re1 {[%clk 0:02:22.6]} 13... Rc8 {[%clk 0:02:37]} 14.
Rb1 {[%clk 0:02:09.4]} 14... Na5 {[%clk 0:02:23.1]} 15. Bd2 {[%clk 0:02:00.6]}
15... b6 {[%clk 0:02:21]} 16. Ne5 {[%clk 0:01:49.8]} 16... Bxe2 {[%clk
0:02:19.9]} 17. Qxe2 {[%clk 0:01:46.9]} 17... Bxe5 {[%clk 0:02:19.9]} 18. Qxe5
{[%clk 0:01:47.8]} 18... Nc4 {[%clk 0:02:20.1]} 19. Qe2 {[%clk 0:01:47.9]} 19...
Qd5 {[%clk 0:02:20.1]} 20. Bf4 {[%clk 0:01:41.7]} 20... h6 {[%clk 0:02:17.5]}
21. Rbc1 {[%clk 0:01:32.2]} 21... Rfd8 {[%clk 0:02:15.3]} 22. Qg4 {[%clk
0:01:29.8]} 22... Kh7 {[%clk 0:01:47.9]} 23. Qg3 {[%clk 0:01:20.9]} 23... Rd7
{[%clk 0:01:34.9]} 24. a4 {[%clk 0:01:10.4]} 24... Qf5 {[%clk 0:01:18.6]} 25.
Be5 {[%clk 0:01:02.3]} 25... f6 {[%clk 0:01:18.2]} 26. Bf4 {[%clk 0:01:01.2]}
26... Nb2 {[%clk 0:01:18.4]} 27. Qe3 {[%clk 0:00:28.5]} 27... Nd3 {[%clk
0:01:13.7]} 28. g4 {[%clk 0:00:28.6]} 28... Qg6 {[%clk 0:01:14]} 29. Qxe6 {[%clk
0:00:25.6]} 29... Rdd8 {[%clk 0:01:09.3]} 30. Bg3 {[%clk 0:00:16.5]} 30... Re8
{[%clk 0:01:01.4]} 31. Qd7 {[%clk 0:00:11.6]} 31... Nxe1 {[%clk 0:00:58.1]} 0-1

[Event "*** SCC Grand Prix: Titled Tuesday Blitz"]
[Site "Chess.com"]
[Date "2020.07.07"]
[Round "1"]
[White "amiralfio"]
[Black "Micki-taryan"]
[Result "0-1"]
[WhiteElo "2462"]
[BlackElo "3047"]
[TimeControl "180+1"]
[EndTime "10:06:17 PDT"]
[Termination "Micki-taryan won by resignation"]

1. d4 {[%clk 0:02:56]} 1... Nf6 {[%clk 0:03:00.4]} 2. Bf4 {[%clk 0:02:55.1]}
2... e6 {[%clk 0:03:00.3]} 3. e3 {[%clk 0:02:55.4]} 3... b6 {[%clk 0:03:00.9]}
4. Qf3 {[%clk 0:02:42.7]} 4... Nc6 {[%clk 0:02:56.8]} 5. Nc3 {[%clk 0:02:40.8]}
5... Bb7 {[%clk 0:02:56.6]} 6. g4 {[%clk 0:02:41.2]} 6... Bb4 {[%clk 0:02:40.1]}
7. Bg2 {[%clk 0:02:28.6]} 7... Nd5 {[%clk 0:02:26.8]} 8. Ne2 {[%clk 0:02:25]}
8... Nxf4 {[%clk 0:02:26.7]} 9. Qxf4 {[%clk 0:02:21.3]} 9... O-O {[%clk
0:02:26.2]} 10. O-O-O {[%clk 0:02:19]} 10... Bd6 {[%clk 0:02:17.1]} 11. Qf3
{[%clk 0:02:19]} 11... b5 {[%clk 0:02:04.1]} 12. e4 {[%clk 0:02:06.7]} 12... b4
{[%clk 0:02:03]} 13. Nb1 {[%clk 0:02:06.1]} 13... Be7 {[%clk 0:01:58.6]} 14. Nd2
{[%clk 0:02:00]} 14... a5 {[%clk 0:01:54.5]} 15. h4 {[%clk 0:01:43.6]} 15... Ba6
{[%clk 0:01:54.9]} 16. Nb3 {[%clk 0:01:28.9]} 16... a4 {[%clk 0:01:52.8]} 17.
Nc5 {[%clk 0:01:29.1]} 17... Bxe2 {[%clk 0:01:53.1]} 18. Qxe2 {[%clk 0:01:28.4]}
18... Nxd4 {[%clk 0:01:53]} 19. Rxd4 {[%clk 0:01:29.3]} 19... Bxc5 {[%clk
0:01:53.4]} 20. Rd3 {[%clk 0:01:29.6]} 20... a3 {[%clk 0:01:53.3]} 21. b3 {[%clk
0:01:28.2]} 21... e5 {[%clk 0:01:50.5]} 22. g5 {[%clk 0:01:24.2]} 22... Bd4
{[%clk 0:01:50.2]} 23. f4 {[%clk 0:01:19.9]} 23... c5 {[%clk 0:01:41.4]} 24. f5
{[%clk 0:01:17.6]} 24... Rc8 {[%clk 0:01:40]} 25. f6 {[%clk 0:01:01.6]} 25... c4
{[%clk 0:01:34.5]} 26. fxg7 {[%clk 0:00:57.2]} 26... Re8 {[%clk 0:01:27.5]} 27.
bxc4 {[%clk 0:00:50.5]} 27... Rxc4 {[%clk 0:01:28.4]} 28. Rf1 {[%clk 0:00:35.4]}
28... Qc7 {[%clk 0:01:20.4]} 29. Rdf3 {[%clk 0:00:34.9]} 29... Rc8 {[%clk
0:01:15.4]} 30. Rxf7 {[%clk 0:00:06.9]} 30... Rxc2+ {[%clk 0:01:14.8]} 31. Kb1
{[%clk 0:00:07.3]} 31... Rc1+ {[%clk 0:01:13.6]} 0-1

[Event "*** SCC Grand Prix: Titled Tuesday Blitz"]
[Site "Chess.com"]
[Date "2020.07.07"]
[Round "1"]
[White "EvgenyRomanov"]
[Black "ahachess"]
[Result "1-0"]
[WhiteElo "2617"]
[BlackElo "2289"]
[TimeControl "180+1"]
[EndTime "10:06:17 PDT"]
[Termination "EvgenyRomanov won by resignation"]

1. e4 {[%clk 0:02:57.4]} 1... c5 {[%clk 0:02:05.6]} 2. Nf3 {[%clk 0:02:54.4]}
2... d6 {[%clk 0:02:05.3]} 3. Bb5+ {[%clk 0:02:51.6]} 3... Bd7 {[%clk
0:02:04.7]} 4. a4 {[%clk 0:02:51.5]} 4... Nf6 {[%clk 0:02:04.5]} 5. Qe2 {[%clk
0:02:50.4]} 5... Nc6 {[%clk 0:02:01.7]} 6. O-O {[%clk 0:02:40]} 6... g6 {[%clk
0:02:02.3]} 7. c3 {[%clk 0:02:39]} 7... Bg7 {[%clk 0:02:02.2]} 8. d4 {[%clk
0:02:38]} 8... cxd4 {[%clk 0:02:02.2]} 9. cxd4 {[%clk 0:02:38.9]} 9... O-O
{[%clk 0:01:59.5]} 10. h3 {[%clk 0:02:39]} 10... a6 {[%clk 0:01:58.6]} 11. Bxc6
{[%clk 0:02:33.2]} 11... bxc6 {[%clk 0:01:55.5]} 12. a5 {[%clk 0:02:32.3]} 12...
Qc7 {[%clk 0:01:42.3]} 13. Nc3 {[%clk 0:02:30.7]} 13... Rfb8 {[%clk 0:01:41.9]}
14. Bf4 {[%clk 0:02:24.7]} 14... Rb4 {[%clk 0:01:36.5]} 15. Rfc1 {[%clk
0:02:19.2]} 15... Qb7 {[%clk 0:01:36.3]} 16. Na4 {[%clk 0:02:13.8]} 16... Be6
{[%clk 0:01:32.4]} 17. Nb6 {[%clk 0:02:10.6]} 17... Rb8 {[%clk 0:01:30.9]} 18.
e5 {[%clk 0:01:50.4]} 18... Nd5 {[%clk 0:01:13.4]} 19. Nxd5 {[%clk 0:01:48.9]}
19... cxd5 {[%clk 0:01:13.7]} 20. exd6 {[%clk 0:01:47.2]} 20... exd6 {[%clk
0:01:12.9]} 21. Bxd6 {[%clk 0:01:44.9]} 21... Rxb2 {[%clk 0:01:13.2]} 22. Qe3
{[%clk 0:01:40.9]} 22... Rc8 {[%clk 0:01:09.7]} 23. Qf4 {[%clk 0:01:35.9]} 23...
Rxc1+ {[%clk 0:01:01.1]} 24. Rxc1 {[%clk 0:01:35.4]} 24... Rb1 {[%clk 0:01:01]}
25. Kh2 {[%clk 0:01:26]} 25... Rxc1 {[%clk 0:01:01]} 26. Qxc1 {[%clk 0:01:26.9]}
26... Bf5 {[%clk 0:01:00.2]} 27. Be5 {[%clk 0:01:23]} 27... Be4 {[%clk
0:00:57.8]} 28. Nd2 {[%clk 0:01:13.7]} 28... Bxe5+ {[%clk 0:00:52.3]} 29. dxe5
{[%clk 0:01:14.6]} 29... Qb8 {[%clk 0:00:51.6]} 30. f4 {[%clk 0:01:13.3]} 30...
g5 {[%clk 0:00:41.6]} 31. Nxe4 {[%clk 0:01:01.8]} 31... dxe4 {[%clk 0:00:41.7]}
32. Qe3 {[%clk 0:01:02.7]} 32... f5 {[%clk 0:00:36.9]} 33. Qb6 {[%clk
0:00:56.2]} 33... gxf4 {[%clk 0:00:33.1]} 34. Qxb8+ {[%clk 0:00:55.1]} 1-0

[Event "*** SCC Grand Prix: Titled Tuesday Blitz"]
[Site "Chess.com"]
[Date "2020.07.07"]
[Round "1"]
[White "AlanTate"]
[Black "Benjoneliere44"]
[Result "0-1"]
[WhiteElo "2161"]
[BlackElo "2529"]
[TimeControl "180+1"]
[EndTime "10:06:17 PDT"]
[Termination "Benjoneliere44 won on time"]

1. d4 {[%clk 0:03:00.9]} 1... d6 {[%clk 0:02:58.1]} 2. e4 {[%clk 0:02:55]} 2...
g6 {[%clk 0:02:44.4]} 3. Nc3 {[%clk 0:02:54.2]} 3... a6 {[%clk 0:02:39.1]} 4.
Be3 {[%clk 0:02:41.6]} 4... b5 {[%clk 0:02:34.6]} 5. Qd2 {[%clk 0:02:36.8]} 5...
Bb7 {[%clk 0:02:32.5]} 6. f3 {[%clk 0:02:37.1]} 6... Nd7 {[%clk 0:02:31.7]} 7.
O-O-O {[%clk 0:02:32.2]} 7... Nb6 {[%clk 0:02:28.7]} 8. a3 {[%clk 0:02:27.5]}
8... e6 {[%clk 0:02:13.4]} 9. h4 {[%clk 0:02:22.8]} 9... h6 {[%clk 0:02:13.2]}
10. g4 {[%clk 0:01:54]} 10... Bg7 {[%clk 0:02:08.7]} 11. Kb1 {[%clk 0:01:38.6]}
11... Nf6 {[%clk 0:01:56]} 12. Nh3 {[%clk 0:01:30.7]} 12... Nfd7 {[%clk
0:01:52.1]} 13. Nf2 {[%clk 0:01:04.8]} 13... Qe7 {[%clk 0:01:48.2]} 14. f4
{[%clk 0:00:58.8]} 14... h5 {[%clk 0:01:44.7]} 15. g5 {[%clk 0:00:45.5]} 15...
d5 {[%clk 0:01:41.7]} 16. f5 {[%clk 0:00:32.4]} 16... Bf8 {[%clk 0:01:25.3]} 17.
fxg6 {[%clk 0:00:20.8]} 17... fxg6 {[%clk 0:01:25.3]} 18. exd5 {[%clk
0:00:14.6]} 18... Nxd5 {[%clk 0:01:23.3]} 19. Nxd5 {[%clk 0:00:14.4]} 19... Bxd5
{[%clk 0:01:23.3]} 20. Bd3 {[%clk 0:00:12.9]} 20... Rg8 {[%clk 0:01:19.4]} 21.
Ne4 {[%clk 0:00:06.5]} 21... Bg7 {[%clk 0:01:12.1]} 22. Rhf1 {[%clk 0:00:03.6]}
22... O-O-O {[%clk 0:01:06.1]} 23. a4 {[%clk 0:00:03.5]} 23... c6 {[%clk
0:00:58.1]} 24. Qa5 {[%clk 0:00:02.6]} 24... Nb8 {[%clk 0:00:52.8]} 25. Bf4
{[%clk 0:00:01.4]} 25... e5 {[%clk 0:00:51.5]} 0-1